bitfinex/quotes_SOLUSD_20250918
["timestamp","ask_amount","ask_price","bid_price","bid_amount"]
[1758171452090,0.06,246.17,246.16,31.03672158]
[1758171454612,0.06,246.17,246.16,0.28432314]
[1758171454790,0.06,246.17,246.16,26.14216157]
[1758171454791,0.76,246.17,246.16,26.14216157]
[1758171454993,0.06,246.17,246.16,26.28432314]
[1758171455191,0.76,246.17,246.16,0.28432314]
[1758171455389,0.06,246.17,246.16,0.28432314]
[1758171455799,0.06,246.17,246.16,26.28432314]
[1758171457395,0.06,246.17,246.13,0.03]
[1758171457396,0.76,246.17,246.13,0.03]
[1758171457712,0.06,246.17,246.13,0.03]
[1758171457890,0.7,246.16,246.13,0.03]
[1758171458092,0.7,246.15,246.13,0.03]
[1758171458810,0.7,246.14,246.13,0.03]
[1758171459012,0.7,246.15,246.13,0.03]
[1758171463309,0.7,246.14,246.13,0.03]
[1758171463705,0.7,246.15,246.13,0.03]
[1758171463907,0.7,246.14,246.13,0.03]
[1758171465817,0.7,246.16,246.13,0.03]
[1758171466000,0.7,246.14,246.13,0.03]
[1758171466718,0.06,246.17,246.13,0.03]
[1758171467016,0.7,246.16,246.13,0.03]
[1758171467323,0.7,246.15,246.13,26.03]
[1758171467908,0.76,246.17,246.13,0.7]
[1758171468101,0.76,246.17,246.13,0.03]
[1758171468305,0.7,246.16,246.13,26.03]
[1758171470128,0.06,246.17,246.13,26.03]
[1758171470425,0.76,246.17,246.13,26.03]
[1758171470630,0.7,246.16,246.13,26.03]
[1758171470924,0.06,246.17,246.13,26.03]
[1758171471131,0.76,246.17,246.13,26.03]
[1758171471828,0.7,246.16,246.13,26.03]
[1758171472932,0.06,246.17,246.13,26.03]
[1758171473113,0.76,246.17,246.13,26.7]
[1758171473317,0.06,246.17,246.13,0.7]
[1758171473513,0.06,246.17,246.13,4.37718937]
[1758171473717,0.06,246.17,246.14,0.67]
[1758171474032,0.06,246.17,246.16,26.28432314]
[1758171474409,0.06,246.17,246.16,0.95432314]
[1758171475131,0.06,246.17,246.16,5.01672158]
[1758171479517,0.06,246.17,246.16,0.95432314]
[1758171482152,0.06,246.17,246.16,0.28432314]
[1758171482445,0.74,246.17,246.16,0.28432314]
[1758171483026,0.06,246.17,246.16,0.28432314]
[1758171483754,0.06,246.17,246.16,26.28432314]
[1758171485060,0.06,246.17,246.16,0.28432314]
[1758171486055,0.06,246.17,246.16,26.93432314]
[1758171491272,0.06,246.17,246.16,26.28432314]
[1758171492057,0.06,246.17,246.16,26.93432314]
[1758171494535,0.06,246.17,246.16,0.93432314]
[1758171497457,0.06,246.17,246.16,0.28432314]
[1758171497671,0.06,246.17,246.15,84.86255813]
[1758171498044,0.06,246.17,246.16,0.14216157]
[1758171498243,0.06,246.17,246.16,0.28432314]
[1758171499760,0.06,246.17,246.16,0.31432314]
[1758171500367,0.06,246.17,246.16,26.31432314]
[1758171503651,0.06,246.17,246.16,0.96432314]
[1758171504266,0.06,246.17,246.16,0.31432314]
[1758171506546,0.75,246.17,246.16,0.03]
[1758171507073,0.06,246.17,246.16,0.03]
[1758171513873,0.06,246.17,246.16,0.71]
[1758171516080,0.06,246.17,246.16,5.05672158]
[1758171516782,0.06,246.17,246.16,31.05672158]
[1758171517576,0.06,246.17,246.16,5.05672158]
[1758171518265,0.06,246.17,246.16,31.05672158]
[1758171518585,0.06,246.17,246.16,5.05672158]
[1758171525595,0.16,246.19,246.18,26.0]
[1758171525794,0.16,246.19,246.18,26.28432314]
[1758171526170,0.16,246.19,246.18,31.02639154]
[1758171536802,0.16,246.19,246.18,30.34639154]
[1758171537305,0.16,246.19,246.18,31.02639154]
[1758171538982,0.86,246.19,246.18,26.0]
[1758171541094,0.16,246.19,246.18,26.0]
[1758171541396,0.83,246.19,246.17,26.0]
[1758171543300,0.16,246.19,246.17,4.06221166]
[1758171544285,0.16,246.19,246.16,0.31432314]
[1758171544485,0.83,246.19,246.16,0.31432314]
[1758171544790,0.67,246.18,246.16,0.31432314]
[1758171545184,0.67,246.17,246.16,0.31432314]
[1758171547102,0.83,246.19,246.16,0.17216157]
[1758171547299,0.67,246.18,246.16,0.03]
[1758171547785,0.67,246.18,246.16,26.03]
[1758171548511,0.16,246.19,246.16,30.09237167]
[1758171548698,0.83,246.19,246.16,4.09237167]
[1758171549187,0.16,246.19,246.16,4.09237167]
[1758171550200,0.83,246.19,246.16,4.09237167]
[1758171550597,0.16,246.19,246.16,4.09237167]
[1758171551523,5.86104648,246.33,246.16,4.80237167]
[1758171552289,0.06,246.19,246.16,4.80237167]
[1758171552491,0.06,246.19,246.17,0.71]
[1758171552691,0.06,246.19,246.16,4.80237167]
[1758171552992,0.06,246.19,246.16,4.09237167]
[1758171553320,0.06,246.19,246.17,0.71]
[1758171553813,0.06,246.19,246.17,4.77220821]
[1758171554819,0.06,246.19,246.17,4.06220821]
[1758171555119,0.06,246.19,246.18,0.71]
[1758171556029,0.06,246.19,246.16,26.74]
[1758171556412,0.06,246.19,246.17,0.71]
[1758171556813,0.06,246.19,246.17,26.71]
[1758171557228,0.06,246.19,246.17,26.0]
[1758171557430,0.06,246.19,246.16,4.09237815]
[1758171557613,0.06,246.19,246.16,4.80237815]
[1758171558027,0.06,246.19,246.16,4.09237815]
[1758171558225,0.06,246.19,246.17,26.71]
[1758171558533,0.06,246.19,246.17,26.0]
[1758171560520,0.37,246.19,246.16,26.03]
[1758171561115,0.06,246.19,246.16,26.03]
[1758171561623,0.06,246.19,246.17,0.71]
[1758171561815,0.06,246.19,246.17,26.71]
[1758171562422,0.06,246.19,246.17,0.71]
[1758171563749,0.06,246.19,246.16,0.03]
[1758171563750,0.31,246.18,246.16,0.03]
[1758171565335,4.37209622,246.18,246.16,0.03]
[1758171566622,4.06209622,246.18,246.16,0.03]
[1758171567942,4.37209622,246.18,246.16,0.03]
[1758171568253,4.06209622,246.18,246.16,0.03]
[1758171569546,0.06,246.19,246.17,26.71]
[1758171569747,0.06,246.19,246.18,0.71]
[1758171570546,0.06,246.19,246.18,26.71]
[1758171571852,0.06,246.19,246.17,26.0]
[1758171572956,0.06,246.19,246.16,0.03]
[1758171573259,0.06,246.19,246.17,26.68]
[1758171574470,0.06,246.19,246.18,0.68]
[1758171574659,0.06,246.19,246.18,26.68]
[1758171575244,0.06,246.19,246.18,0.68]
[1758171575638,0.06,246.19,246.18,26.68]
[1758171576564,0.06,246.19,246.18,0.68]
[1758171578071,0.06,246.19,246.18,26.68]
[1758171578760,0.06,246.19,246.18,0.68]
[1758171579166,0.06,246.19,246.18,26.68]
[1758171579946,0.06,246.19,246.18,0.68]
[1758171580271,0.06,246.19,246.18,26.68]
[1758171587880,0.06,246.19,246.18,26.71]
[1758171588365,0.06,246.19,246.18,0.71]
[1758171592979,0.06,246.19,246.18,0.99432314]
[1758171593179,0.06,246.19,246.18,14.58991715]
[1758171593381,0.06,246.19,246.18,16.21497555]
[1758171601680,0.06,246.19,246.18,1.6550584]
[1758171601879,0.06,246.19,246.18,0.03]
[1758171602086,0.06,246.19,246.18,26.03]
[1758171602595,0.06,246.19,246.18,0.03]
[1758171602898,0.06,246.19,246.18,0.69]
[1758171603390,0.06,246.19,246.18,0.03]
[1758171603890,0.06,246.19,246.18,0.69]
[1758171604308,0.06,246.19,246.18,0.03]
[1758171606578,0.06,246.19,246.18,26.03]
[1758171606792,0.06,246.19,246.18,0.03]
[1758171607181,0.06,246.19,246.18,26.03]
[1758171609502,0.06,246.19,246.18,0.03]
[1758171609700,0.06,246.19,246.18,26.03]
[1758171609894,0.06,246.19,246.18,26.69]
[1758171612282,0.06,246.22,246.19,4.0619034]
[1758171612482,0.06,246.22,246.21,26.0]
[1758171612782,0.06,246.22,246.2,0.66]
[1758171613302,0.06,246.22,246.19,30.0619034]
[1758171613601,0.06,246.22,246.19,30.7219034]
[1758171613791,0.06,246.22,246.2,0.66]
[1758171614701,0.06,246.22,246.19,27.62525648]
[1758171614905,0.06,246.22,246.2,26.0]
[1758171615206,0.06,246.22,246.21,26.0]
[1758171615589,0.37,246.22,246.21,26.0]
[1758171615906,0.37,246.22,246.18,0.03]
[1758171617012,0.37,246.22,246.18,26.03]
[1758171617497,0.37,246.22,246.18,0.03]
[1758171618486,0.06,246.22,246.18,26.03]
[1758171619110,0.06,246.22,246.18,26.69]
[1758171620106,0.06,246.22,246.19,0.66]
[1758171620606,0.06,246.22,246.2,0.66]
[1758171621609,0.06,246.22,246.18,0.03]
[1758171621813,0.06,246.22,246.19,0.66]
[1758171623216,0.06,246.22,246.2,0.66]
[1758171624322,0.06,246.22,246.18,26.03]
[1758171624499,0.06,246.22,246.19,0.66]
[1758171625297,0.06,246.22,246.18,0.03]
[1758171625721,0.06,246.22,246.18,0.69]
[1758171626015,0.06,246.22,246.19,0.66]
[1758171629935,0.06,246.22,246.2,0.66]
[1758171631313,0.06,246.22,246.18,26.03]
[1758171631519,0.06,246.22,246.19,0.66]
[1758171632518,0.06,246.22,246.2,0.66]
[1758171633407,0.06,246.22,246.18,26.73]
[1758171633718,2.59980645,246.21,246.18,0.03]
[1758171633907,2.28980645,246.19,246.18,0.03]
[1758171634314,2.59980645,246.19,246.18,0.03]
[1758171636326,6.66170985,246.19,246.18,0.03]
[1758171636530,4.3719034,246.19,246.18,0.03]
[1758171636714,6.66170985,246.19,246.18,0.03]
[1758171642728,4.3719034,246.19,246.18,0.03]
[1758171642927,6.66170985,246.19,246.18,0.03]
[1758171643532,0.06,246.22,246.18,0.73]
[1758171644604,4.12145617,246.22,246.18,0.73]
[1758171645228,4.12145617,246.22,246.19,0.7]
[1758171645534,4.12145617,246.22,246.2,0.7]
[1758171645710,0.06,246.22,246.2,0.7]
[1758171649333,0.06,246.22,246.2,4.7616945]
[1758171649711,0.06,246.22,246.21,0.7]
[1758171652440,0.06,246.22,246.19,26.0]
[1758171652622,0.06,246.22,246.18,0.03]
[1758171652623,4.12156869,246.22,246.18,0.03]
[1758171652823,4.43156869,246.22,246.18,0.03]
[1758171653135,0.31,246.21,246.18,0.03]
[1758171653320,3.02945626,246.21,246.18,0.03]
[1758171653517,0.31,246.21,246.18,0.03]
[1758171654018,1.77564009,246.21,246.18,0.03]
[1758171654439,15.74073002,246.22,246.18,0.03]
[1758171654822,14.27508993,246.22,246.18,0.03]
[1758171655741,4.12156869,246.22,246.18,0.03]
[1758171656047,4.12156869,246.22,246.18,0.73]
[1758171656225,4.12156869,246.22,246.19,0.7]
[1758171656631,4.12156869,246.22,246.18,0.03]
[1758171656930,0.06,246.22,246.19,0.7]
[1758171657132,0.06,246.22,246.2,0.7]
[1758171659541,4.12143333,246.22,246.2,0.7]
[1758171659744,4.12143333,246.22,246.18,0.03]
[1758171659745,4.43143333,246.22,246.18,0.03]
[1758171660445,4.12143333,246.22,246.18,0.03]
[1758171660841,4.43143333,246.22,246.18,0.03]
[1758171661043,14.58495457,246.22,246.18,0.03]
[1758171661352,0.31,246.21,246.18,0.03]
[1758171661552,0.31,246.2,246.18,0.03]
[1758171662926,4.0619034,246.19,246.18,0.03]
[1758171666831,4.06157345,246.21,246.18,0.03]
[1758171668558,4.06157345,246.21,246.18,0.75]
[1758171669054,0.06,246.22,246.19,0.72]
[1758171669247,0.06,246.22,246.2,0.72]
[1758171669652,0.06,246.22,246.21,0.72]
[1758171669845,4.12145765,246.22,246.21,0.72]
[1758171671058,4.12145765,246.22,246.19,0.72]
[1758171671248,4.12145765,246.22,246.2,0.72]
[1758171673235,4.12145765,246.22,246.21,0.72]
[1758171673953,4.12145765,246.22,246.18,0.75]
[1758171674162,4.12145765,246.22,246.18,0.03]
[1758171674373,4.12145765,246.22,246.18,0.75]
[1758171674739,0.31,246.21,246.18,0.03]
[1758171675162,0.31,246.2,246.18,0.03]
[1758171675353,1.77564009,246.21,246.18,0.03]
[1758171675556,1.46564009,246.21,246.18,0.03]
[1758171676357,4.06173842,246.2,246.18,0.03]
[1758171679352,4.06173842,246.2,246.19,0.72]
[1758171679544,4.06173842,246.2,246.18,0.03]
[1758171681670,1.77564009,246.19,246.18,0.03]
[1758171681850,4.49281667,246.19,246.18,0.03]
[1758171684071,4.49281667,246.19,246.16,1e-08]
[1758171684072,17.65766241,246.18,246.16,1e-08]
[1758171684275,4.18281667,246.17,246.16,1e-08]
[1758171684472,4.49281667,246.17,246.16,1e-08]
[1758171685082,6.11919655,246.17,246.16,1e-08]
[1758171689665,5.80919655,246.17,246.16,1e-08]
[1758171691582,17.65766241,246.18,246.16,0.72000001]
[1758171691583,5.52770849,246.18,246.16,0.72000001]
[1758171691767,4.0620684,246.18,246.16,0.72000001]
[1758171692382,4.06183939,246.2,246.16,0.72000001]
[1758171697584,0.06,246.21,246.17,0.14216157]
[1758171697882,0.06,246.21,246.18,0.69]
[1758171700480,4.12165202,246.21,246.16,1e-08]
[1758171700686,4.12165202,246.21,246.18,0.69]
[1758171701271,4.12165202,246.21,246.19,0.69]
[1758171701488,4.12165202,246.21,246.17,0.69]
[1758171701699,4.12165202,246.21,246.18,0.69]
[1758171702571,4.12165202,246.21,246.16,1e-08]
[1758171702772,4.12165202,246.21,246.17,0.69]
[1758171702983,4.12165202,246.21,246.18,0.69]
[1758171703177,4.12165202,246.21,246.16,1e-08]
[1758171703386,4.12165202,246.21,246.17,0.69]
[1758171704972,4.12165202,246.21,246.18,0.69]
[1758171706697,4.12165202,246.21,246.16,1e-08]
[1758171706698,4.12165202,246.21,246.19,0.69]
[1758171708012,4.12165202,246.21,246.16,0.69000001]
[1758171708321,4.12165202,246.21,246.17,0.69]
[1758171708503,4.12165202,246.21,246.16,1e-08]
[1758171708698,4.12165202,246.21,246.18,0.69]
[1758171709807,4.12165202,246.21,246.16,1e-08]
[1758171710014,4.12165202,246.21,246.16,0.69000001]
[1758171710209,4.12165202,246.21,246.17,0.69]
[1758171710804,4.12165202,246.21,246.16,1e-08]
[1758171711004,4.12165202,246.21,246.17,0.69]
[1758171711317,4.12165202,246.21,246.18,0.69]
[1758171713497,4.12165202,246.21,246.16,1e-08]
[1758171713816,4.12165202,246.21,246.16,0.69000001]
[1758171713817,16.56612776,246.21,246.16,0.69000001]
[1758171714013,2.29054211,246.2,246.16,1e-08]
[1758171714221,2.60054211,246.2,246.16,1e-08]
[1758171714396,0.31,246.19,246.16,1e-08]
[1758171715094,2.71628263,246.2,246.16,1e-08]
[1758171715490,4.0619034,246.19,246.16,1e-08]
[1758171715718,4.0619034,246.19,246.17,0.69]
[1758171715918,4.0619034,246.19,246.18,0.69]
[1758171717323,4.0619034,246.19,246.16,0.69000001]
[1758171717498,4.0619034,246.19,246.17,0.69]
[1758171718401,4.0619034,246.19,246.16,1e-08]
[1758171718402,4.12171346,246.21,246.18,0.69]
[1758171718605,4.12171346,246.21,246.19,0.69]
[1758171718911,4.12171346,246.21,246.16,1e-08]
[1758171719117,4.12171346,246.21,246.17,0.69]
[1758171719320,4.12171346,246.21,246.18,0.69]
[1758171719694,4.12171346,246.21,246.16,1e-08]
[1758171719894,4.12171346,246.21,246.17,0.69]
[1758171720108,4.12171346,246.21,246.18,0.69]
[1758171720325,4.12171346,246.21,246.17,0.69]
[1758171720523,4.12171346,246.21,246.16,1e-08]
[1758171720731,4.12171346,246.21,246.17,0.69]
[1758171720915,6.83884379,246.21,246.17,0.69]
[1758171721222,2.29054211,246.2,246.16,1e-08]
[1758171721424,2.29054211,246.2,246.16,0.69000001]
[1758171721610,14.58564709,246.21,246.16,0.69000001]
[1758171721925,16.8761892,246.21,246.16,0.69000001]
[1758171722532,2.71689756,246.2,246.16,0.69000001]
[1758171722830,2.71689756,246.2,246.16,1e-08]
[1758171724024,4.0619034,246.19,246.16,1e-08]
[1758171725340,16.50720402,246.19,246.16,1e-08]
[1758171725511,2.71689756,246.18,246.16,1e-08]
[1758171726010,5.00743967,246.18,246.16,1e-08]
[1758171726428,4.06223341,246.17,246.16,1e-08]
[1758171727217,6.35277552,246.17,246.16,1e-08]
[1758171727423,4.06223341,246.17,246.16,1e-08]
[1758171727626,4.06223341,246.17,246.16,0.70000001]
[1758171728231,4.06203475,246.19,246.16,0.70000001]
[1758171729537,4.06203475,246.19,246.17,0.7]
[1758171730221,4.06203475,246.19,246.16,1e-08]
[1758171730406,4.06203475,246.19,246.16,0.70000001]
[1758171733117,4.06203475,246.19,246.16,1e-08]
[1758171733936,6.35257686,246.19,246.16,1e-08]
[1758171734116,9.0696098,246.19,246.16,1e-08]
[1758171734316,2.29054211,246.18,246.16,1e-08]
[1758171734514,5.00757505,246.17,246.16,1e-08]
[1758171735008,9.06980846,246.17,246.16,1e-08]
[1758171735521,9.37980846,246.17,246.16,1e-08]
[1758171736641,11.0060561,246.17,246.16,1e-08]
[1758171738229,10.6960561,246.17,246.16,1e-08]
[1758171738430,11.0060561,246.17,246.16,1e-08]
[1758171740544,11.0660561,246.17,246.16,1e-08]
[1758171741233,10.7560561,246.17,246.16,1e-08]
[1758171742149,24.35165011,246.17,246.16,1e-08]
[1758171742336,24.66165011,246.17,246.16,1e-08]
[1758171743953,13.59559401,246.16,246.13,1e-08]
[1758171744126,2.29054211,246.14,246.13,1e-08]
[1758171744439,5.00757505,246.14,246.13,1e-08]
[1758171744647,5.31757505,246.14,246.13,1e-08]
[1758171745035,19.1974922,246.14,246.13,1e-08]
[1758171745349,20.82420279,246.14,246.13,1e-08]
[1758171745548,28.19543829,246.14,246.13,1e-08]
[1758171745731,28.19543829,246.14,246.1,1e-08]
[1758171745732,2.29054211,246.11,246.1,1e-08]
[1758171746133,2.60054211,246.11,246.1,1e-08]
[1758171746334,4.22731885,246.11,246.1,1e-08]
[1758171747041,3.91731885,246.11,246.1,1e-08]
[1758171747246,4.22731885,246.11,246.1,1e-08]
[1758171747436,7.98054261,246.11,246.1,1e-08]
[1758171747637,10.69757555,246.11,246.1,1e-08]
[1758171752653,24.29316956,246.11,246.1,1e-08]
[1758171752858,24.8874927,246.11,246.1,1e-08]
[1758171753442,44.8874927,246.11,246.1,1e-08]
[1758171754036,44.87891753,246.11,246.1,1e-08]
[1758171754737,24.87891753,246.11,246.1,1e-08]
[1758171755661,44.87891753,246.11,246.1,1e-08]
[1758171756662,24.56891753,246.11,246.1,1e-08]
[1758171761165,24.87891753,246.11,246.1,1e-08]
[1758171761357,21.86045976,246.11,246.1,1e-08]
[1758171761561,24.56670834,246.11,246.1,1e-08]
[1758171763552,24.87670834,246.11,246.1,1e-08]
[1758171764567,24.56670834,246.11,246.1,1e-08]
[1758171764764,24.56589049,246.11,246.1,1e-08]
[1758171767970,23.74352423,246.11,246.1,1e-08]
[1758171771778,23.74352423,246.11,246.1,0.70000001]
[1758171774876,23.74352423,246.11,246.1,1e-08]
[1758171776471,23.74352423,246.11,246.1,0.70000001]
[1758171776953,23.74352423,246.11,246.1,1e-08]
[1758171777958,23.74352423,246.11,246.1,0.70000001]
[1758171779390,9.86360708,246.11,246.1,0.70000001]
[1758171781787,8.39543123,246.11,246.1,0.70000001]
[1758171781969,6.76865449,246.11,246.1,0.70000001]
[1758171782173,4.06322376,246.11,246.1,0.70000001]
[1758171783391,6.76865449,246.11,246.1,0.70000001]
[1758171783795,2.70543073,246.11,246.1,0.70000001]
[1758171783981,2.70543073,246.15,246.1,0.70000001]
[1758171784495,2.70543073,246.15,246.1,4.76334392]
[1758171784802,29.92369354,246.16,246.11,0.7]
[1758171784995,29.92369354,246.16,246.12,4.06305867]
[1758171785197,0.06,246.17,246.14,26.0]
[1758171785696,0.06,246.17,246.15,0.7]
[1758171785894,0.06,246.17,246.15,26.7]
[1758171786289,0.06,246.17,246.16,0.7]
[1758171787087,0.06,246.17,246.16,4.76239844]
[1758171788884,0.06,246.17,246.16,0.7]
[1758171792207,0.06,246.17,246.16,0.98432314]
[1758171792408,0.06,246.17,246.16,40.57991715]
[1758171792593,0.06,246.17,246.16,42.20530572]
[1758171792789,0.06,246.2,246.18,0.28432314]
[1758171793096,0.06,246.2,246.19,0.7]
[1758171793510,0.06,246.2,246.19,40.57991715]
[1758171794097,0.06,246.23,246.21,0.28432314]
[1758171794425,0.06,246.23,246.22,39.87991715]
[1758171794914,0.06,246.24,246.23,0.28432314]
[1758171795118,0.06,246.24,246.23,0.98432314]
[1758171795297,0.06,246.28,246.24,13.59559401]
[1758171795503,0.06,246.28,246.24,14.29559401]
[1758171795686,0.06,246.28,246.24,40.29559401]
[1758171796717,0.06,246.28,246.24,44.35667263]
[1758171797229,0.06,246.28,246.25,0.28432314]
[1758171797529,0.06,246.28,246.26,14.29559401]
[1758171798326,0.06,246.28,246.26,14.57991715]
[1758171798823,0.06,246.28,246.26,18.64066595]
[1758171800230,0.06,246.28,246.27,13.87991715]
[1758171800410,0.1,246.36,246.27,13.87991715]
[1758171800411,0.1,246.36,246.29,26.28432314]
[1758171800598,0.1,246.36,246.31,0.28432314]
[1758171800799,0.1,246.36,246.32,0.7]
[1758171801822,0.1,246.36,246.34,26.0]
[1758171802122,0.1,246.36,246.35,0.7]
[1758171803000,0.1,246.36,246.35,26.7]
[1758171804648,0.1,246.36,246.35,0.7]
[1758171806718,0.82,246.36,246.33,26.0]
[1758171806917,0.72,246.35,246.31,26.0]
[1758171807125,0.72,246.34,246.31,26.0]
[1758171807333,0.72,246.33,246.31,26.0]
[1758171807750,0.72,246.33,246.29,26.0]
[1758171808248,4.15919023,246.36,246.3,0.7]
[1758171808433,4.87919023,246.36,246.3,0.7]
[1758171808940,0.06,246.35,246.3,0.7]
[1758171809118,0.78,246.35,246.3,0.7]
[1758171809822,0.06,246.35,246.29,26.0]
[1758171810026,0.72,246.34,246.26,0.28432314]
[1758171810232,0.72,246.34,246.27,26.0]
[1758171810546,4.05975966,246.32,246.23,0.73]
[1758171810744,0.72,246.31,246.23,0.73]
[1758171811412,0.72,246.31,246.23,26.73]
[1758171811610,0.72,246.3,246.23,26.73]
[1758171811845,15.67733466,246.32,246.23,26.73]
[1758171811846,1.46817585,246.31,246.23,26.73]
[1758171812143,1.46817585,246.31,246.23,0.03]
[1758171812144,1.46817585,246.25,246.23,0.03]
[1758171812333,4.78033272,246.29,246.23,0.03]
[1758171812515,4.78033272,246.29,246.23,0.73]
[1758171813052,4.78033272,246.29,246.23,0.03]
[1758171813513,14.93096814,246.29,246.23,0.03]
[1758171813713,16.39914399,246.29,246.23,0.03]
[1758171814159,1.46817585,246.28,246.23,0.03]
[1758171814324,1.46817585,246.27,246.23,0.03]
[1758171814526,0.67,246.27,246.23,0.03]
[1758171814720,0.67,246.26,246.23,0.03]
[1758171815120,4.06058391,246.27,246.23,0.03]
[1758171815327,0.67,246.25,246.23,0.03]
[1758171816324,2.13817585,246.24,246.23,0.03]
[1758171817122,6.19925447,246.24,246.23,0.03]
[1758171819743,4.73107862,246.24,246.23,0.03]
[1758171819943,6.19925447,246.24,246.23,0.03]
[1758171824234,5.52925447,246.24,246.23,0.03]
[1758171824648,6.19925447,246.24,246.23,0.03]
[1758171827770,7.02162513,246.24,246.23,0.03]
[1758171827968,4.73107862,246.24,246.23,0.03]
[1758171828186,7.02162513,246.24,246.23,0.03]
[1758171828359,9.31217164,246.24,246.23,0.03]
[1758171828543,10.93808876,246.24,246.23,0.03]
[1758171828882,13.63912084,246.24,246.23,0.03]
[1758171832161,39.63912084,246.24,246.23,0.03]
[1758171833062,53.51903799,246.24,246.18,0.03]
[1758171833270,2.29054651,246.19,246.18,0.03]
[1758171833775,2.96054651,246.19,246.18,0.03]
[1758171834166,7.02244991,246.19,246.18,0.03]
[1758171834751,9.72694934,246.19,246.18,0.03]
[1758171835148,7.02244991,246.19,246.18,0.03]
[1758171836845,6.35244991,246.19,246.18,0.03]
[1758171838280,4.0619034,246.19,246.18,0.03]
[1758171838476,4.0616871,246.21,246.18,0.7]
[1758171839471,4.0616871,246.21,246.19,0.67]
[1758171839658,4.0616871,246.21,246.2,0.67]
[1758171840172,4.06132024,246.23,246.2,0.67]
[1758171841261,14.21328433,246.25,246.2,0.67]
[1758171841964,4.0609137,246.25,246.2,0.67]
[1758171842478,4.06072209,246.27,246.2,0.67]
[1758171843465,14.21125991,246.29,246.2,0.67]
[1758171844173,4.06025417,246.29,246.2,4.7617026]
[1758171844382,4.06025417,246.29,246.21,0.69]
[1758171846182,4.06025417,246.29,246.21,4.75153503]
[1758171846471,0.06,246.3,246.22,0.69]
[1758171847055,0.06,246.3,246.24,26.0]
[1758171847261,0.06,246.3,246.25,0.69]
[1758171847867,0.06,246.3,246.26,4.0607488]
[1758171848061,0.06,246.3,246.27,0.69]
[1758171851086,0.06,246.3,246.27,4.75052777]
[1758171851492,0.06,246.3,246.28,0.69]
[1758171853375,0.69,246.29,246.22,26.69]
[1758171853691,2.98054651,246.29,246.22,26.69]
[1758171854079,2.98054651,246.29,246.22,0.69]
[1758171854393,4.06041903,246.28,246.22,0.69]
[1758171854886,0.69,246.27,246.2,0.03]
[1758171855087,0.69,246.27,246.21,0.69]
[1758171855292,2.98054651,246.27,246.21,0.69]
[1758171855495,2.29054651,246.26,246.21,0.69]
[1758171855708,2.98054651,246.27,246.21,0.69]
[1758171856486,4.0607488,246.26,246.21,0.69]
[1758171856791,4.0607488,246.26,246.22,0.69]
[1758171857712,4.0607488,246.26,246.2,0.03]
[1758171857905,2.29054651,246.25,246.2,0.03]
[1758171858112,2.29054651,246.23,246.2,0.03]
[1758171858406,0.69,246.24,246.2,0.03]
[1758171859610,4.06124355,246.23,246.2,0.03]
[1758171859979,4.06124355,246.23,246.21,0.69]
[1758171860175,4.06102508,246.25,246.21,0.69]
[1758171861597,6.35157159,246.25,246.2,0.03]